bitfinex/quotes_ETHUSD_20251117
["timestamp","ask_amount","ask_price","bid_price","bid_amount"]
[1763411728751,0.90699264,2999.6,2996.9,0.4862]
[1763411728752,8.11428321,2999.7,2997.0,0.405504]
[1763411729060,0.4516,2999.2,2997.0,0.405504]
[1763411729280,0.4516,2999.2,2997.2,0.405504]
[1763411729628,0.4516,2999.2,2996.5,0.1833]
[1763411729629,0.4516,2999.2,2997.3,0.4862]
[1763411729935,0.405504,2999.1,2996.6,0.4862]
[1763411730139,0.405504,2999.1,2996.7,0.03337004]
[1763411730350,0.4516,2999.0,2996.7,1.31249664]
[1763411730525,0.405504,2998.9,2996.9,0.405504]
[1763411731028,0.1927,2999.5,2997.0,0.4862]
[1763411731029,0.405504,2999.4,2997.0,0.4862]
[1763411731229,0.405504,2999.4,2997.3,0.405504]
[1763411731230,0.4516,2999.4,2997.3,0.405504]
[1763411731424,0.4516,2999.4,2997.4,0.90699264]
[1763411731627,0.4516,2999.8,2997.7,0.405504]
[1763411731968,0.002,3000.1,2998.3,0.405504]
[1763411732152,0.002,3000.1,2998.5,4.83849664]
[1763411732352,0.002,3000.1,3000.0,0.1865]
[1763411732537,0.002,3000.8,3000.1,0.405504]
[1763411732738,0.002,3000.8,3000.1,0.4862]
[1763411733863,0.002,3000.8,3000.0,0.3165]
[1763411734064,0.002,3000.8,3000.0,0.8027]
[1763411734578,0.002,3000.8,3000.1,0.4862]
[1763411734774,0.4516,3000.4,2999.4,0.1865]
[1763411734976,0.407504,3000.6,2999.4,0.1865]
[1763411735174,0.405504,3000.3,2998.6,0.1865]
[1763411735343,0.405504,3000.1,2998.6,0.1865]
[1763411735739,0.462,3000.0,2998.6,0.1865]
[1763411735973,0.462,3000.0,2998.7,0.4738]
[1763411736483,0.002,3000.5,2998.8,0.405504]
[1763411736992,0.002,3000.5,2998.6,0.1865]
[1763411736993,0.002,3000.5,2998.9,0.4738]
[1763411737158,0.407504,3000.5,2998.9,0.4738]
[1763411737359,0.405504,3000.3,2998.6,0.1865]
[1763411737550,0.405504,3000.3,2998.7,0.4738]
[1763411737745,0.462,3000.2,2998.7,0.4738]
[1763411738490,0.002,3000.5,2998.8,0.43885067]
[1763411738777,0.002,3000.5,2998.8,0.405504]
[1763411738964,0.002,3000.5,2999.0,0.405504]
[1763411739154,0.002,3000.5,2999.2,0.405504]
[1763411739573,0.002,3000.5,2999.4,0.405504]
[1763411739948,0.002,3000.5,2999.5,0.4738]
[1763411740344,0.002,3000.5,2998.9,1.19057554]
[1763411740550,0.462,3000.4,2998.9,0.4738]
[1763411740790,0.405504,3000.3,2998.6,0.6603]
[1763411740981,0.405504,3000.3,2998.6,0.1865]
[1763411741146,0.462,3000.2,2998.6,0.1865]
[1763411741346,0.405504,3000.1,2998.6,0.1865]
[1763411741790,0.405504,2999.9,2998.4,0.4738]
[1763411742253,0.002,3000.5,2998.4,0.4738]
[1763411742254,0.462,2999.8,2998.4,0.4738]
[1763411742583,0.405504,3000.1,2998.5,0.03335]
[1763411742785,0.405504,3000.3,2998.4,0.4738]
[1763411743191,0.405504,3000.1,2998.5,1.19057554]
[1763411743482,0.405504,3000.1,2998.4,1.66437554]
[1763411743684,0.405504,3000.0,2998.5,0.4738]
[1763411744045,0.462,3000.1,2998.5,0.4738]
[1763411744253,0.462,3000.1,2998.7,1.19057554]
[1763411744452,0.462,3000.1,2998.9,1.19057554]
[1763411744653,0.002,3000.5,2999.0,1.19057554]
[1763411744855,0.002,3000.5,2999.1,1.66437554]
[1763411745049,0.462,3000.4,2999.1,1.19057554]
[1763411745357,0.462,3000.4,2999.4,1.19057554]
[1763411746750,0.462,3000.4,2999.2,2.69285595]
[1763411746751,0.405504,3000.3,2999.1,1.19057554]
[1763411746984,0.462,3000.2,2998.8,1.40033236]
[1763411747889,0.462,3000.2,2998.9,1.66437554]
[1763411748053,0.002,3000.5,2999.3,1.19057554]
[1763411748253,0.462,3000.4,2999.4,1.40033236]
[1763411748454,0.405504,3000.3,2999.4,0.20975682]
[1763411748886,0.867504,3000.3,2999.4,0.20975682]
[1763411749053,0.867504,3000.3,2999.3,1.19057554]
[1763411749505,0.405504,3000.3,2999.2,1.19057554]
[1763411749714,0.462,3000.2,2999.2,1.19057554]
[1763411749921,0.462,3000.2,2999.1,0.90699264]
[1763411749922,0.462,3000.2,2999.3,1.19057554]
[1763411750269,0.462,3000.2,2999.2,1.19057554]
[1763411750604,0.24403334,3000.2,2999.3,1.40033236]
[1763411750766,0.002,3000.5,2999.3,1.19057554]
[1763411751397,0.1173,2999.4,2999.2,1.19057554]
[1763411751620,0.002,3000.5,2999.2,1.19057554]
[1763411751782,0.002,3000.5,2999.3,1.19057554]
[1763411751983,0.002,3000.5,2999.3,1.57891869]
[1763411752386,0.4513,3000.4,2999.3,1.57891869]
[1763411752616,0.405504,3000.3,2999.3,1.57891869]
[1763411752784,0.405504,3000.3,2999.3,0.38834315]
[1763411752992,0.4513,3000.2,2999.2,1.19057554]
[1763411753315,0.002,3000.5,2999.4,1.19057554]
[1763411753473,0.4533,3000.5,2999.4,1.19057554]
[1763411753674,0.4513,3000.4,2999.3,1.19057554]
[1763411753875,0.4513,3000.4,2999.4,1.19057554]
[1763411754378,0.405504,3000.3,2999.3,0.90699264]
[1763411754580,0.4513,3000.4,2999.3,1.19057554]
[1763411754909,0.002,3000.5,2999.3,1.19057554]
[1763411754910,0.4513,3000.3,2999.3,1.19057554]
[1763411755301,0.4513,3000.3,2999.4,1.19057554]
[1763411755813,0.407504,3000.5,2999.5,1.19057554]
[1763411755986,0.002,3000.5,2999.5,1.57891869]
[1763411756187,0.002,3000.5,2999.8,1.19057554]
[1763411756519,0.002,3000.5,3000.4,0.1982]
[1763411756718,0.002,3000.5,3000.4,0.672]
[1763411757034,0.002,3000.5,3000.4,0.1982]
[1763411757341,0.002,3000.5,3000.3,1.78945933]
[1763411757805,0.002,3000.5,3000.3,1.19335546]
[1763411758000,0.462,3000.4,3000.1,1.19335546]
[1763411758215,0.462,3000.4,3000.0,1.19335546]
[1763411758828,0.405504,3000.3,3000.0,1.19335546]
[1763411759038,0.405504,3000.3,2999.9,1.19335546]
[1763411759333,0.405504,3000.2,2999.7,1.19335546]
[1763411759548,0.405504,3000.2,2999.6,1.19335546]
[1763411759693,0.462,3000.2,2999.6,1.19335546]
[1763411759896,0.0393,2999.7,2999.6,1.19335546]
[1763411760413,0.5013,2999.7,2999.4,1.19335546]
[1763411760736,0.0393,2999.7,2999.4,1.19335546]
[1763411760939,0.405504,2999.5,2999.1,1.19335546]
[1763411765481,0.002,3000.5,3000.4,2.70328786]
[1763411765616,0.002,3000.5,3000.4,0.90699264]
[1763411765822,0.002,3000.5,3000.4,2.70328786]
[1763411766124,0.002,3000.5,3000.4,2.7029896]
[1763411766468,0.002,3000.5,3000.4,0.90699264]
[1763411766672,0.002,3000.5,3000.4,2.70297493]
[1763411767130,0.002,3000.5,3000.4,1.43262152]
[1763411767330,0.002,3000.6,3000.4,1.39929264]
[1763411767528,0.002,3001.2,3000.6,0.405504]
[1763411767864,0.6371,3003.0,3001.1,0.173]
[1763411768085,0.6371,3003.0,3002.3,0.89633936]
[1763411768281,0.6371,3003.0,3001.5,3.29723094]
[1763411768282,0.6371,3003.0,3002.2,0.89633936]
[1763411768430,0.6371,3003.0,3002.4,0.89633936]
[1763411768431,0.1862,3003.0,3002.4,0.89633936]
[1763411768751,0.6371,3003.0,3002.4,0.89633936]
[1763411768952,0.6371,3003.0,3002.3,0.89633936]
[1763411769155,0.4509,3002.9,3002.0,0.89633936]
[1763411769355,0.405504,3002.8,3001.9,0.89633936]
[1763411769752,0.405504,3002.6,3001.8,0.89633936]
[1763411770270,0.405504,3002.4,3001.1,0.89633936]
[1763411770770,0.405504,3002.4,3000.9,1.38591915]
[1763411770771,0.4509,3002.9,3001.6,2.09145851]
[1763411770931,0.4509,3002.9,3001.9,0.89633936]
[1763411771265,0.1862,3003.0,3002.2,0.89633936]
[1763411771573,0.405504,3002.8,3001.6,0.89633936]
[1763411771867,0.405504,3002.8,3001.3,0.89633936]
[1763411772053,0.405504,3002.6,3001.4,0.89633936]
[1763411772256,0.405504,3002.6,3001.5,0.89633936]
[1763411772456,0.405504,3002.4,3001.4,0.89633936]
[1763411772766,0.405504,3002.4,3001.2,1.19511915]
[1763411772767,0.405504,3002.4,3001.2,0.89633936]
[1763411772979,0.405504,3002.2,3001.3,0.89633936]
[1763411773269,0.405504,3002.2,3001.4,0.03331778]
[1763411773469,0.405504,3002.9,3001.4,0.89633936]
[1763411773645,0.4509,3002.7,3001.5,0.89633936]
[1763411773970,0.4509,3002.7,3001.3,1.404265]
[1763411773971,0.4509,3002.7,3001.6,0.89633936]
[1763411774569,0.405504,3002.6,3001.6,0.89633936]
[1763411774875,0.405504,3002.6,3001.5,0.89633936]
[1763411775082,0.405504,3002.4,3001.2,0.89633936]
[1763411775593,0.405504,3002.4,3001.1,0.89633936]
[1763411775594,0.405504,3002.2,3001.1,0.89633936]
[1763411775797,0.405504,3002.2,3000.8,0.90699264]
[1763411775798,0.405504,3002.2,3001.0,0.89633936]
[1763411776103,0.1826,3000.9,3000.3,0.89633936]
[1763411776407,0.1826,3001.0,3000.3,0.89633936]
[1763411776701,0.1826,3001.0,3000.0,0.89633936]
[1763411776702,0.853704,3000.9,3000.0,0.89633936]
[1763411777073,0.853704,3000.9,2999.9,1.21258407]
[1763411777274,0.1826,3001.0,3000.1,0.89633936]
[1763411777586,0.405504,3001.2,3000.4,0.89633936]
[1763411777787,0.405504,3001.6,3000.5,0.89633936]
[1763411778010,0.6335,3001.7,3000.7,0.89633936]
[1763411778165,0.1826,3002.0,3001.0,0.89633936]
[1763411778506,0.1826,3002.0,3001.1,0.1803332]
[1763411778671,0.1826,3002.0,3001.2,0.89633936]
[1763411779064,0.1826,3002.0,3001.1,1.07667256]
[1763411779290,0.405504,3001.8,3001.1,0.89633936]
[1763411779459,0.405504,3001.8,3000.9,1.19511915]
[1763411779460,0.405504,3001.8,3001.0,0.89633936]
[1763411779700,0.405504,3001.8,3001.1,0.89633936]
[1763411779864,0.843704,3001.8,3001.0,1.10548521]
[1763411780071,0.1826,3002.0,3001.2,0.89633936]
[1763411780574,0.405504,3001.9,3001.2,0.89633936]
[1763411780799,0.405504,3001.9,3001.1,0.89633936]
[1763411780800,0.843704,3001.9,3001.1,0.89633936]
[1763411781116,0.843704,3001.9,3001.1,1.1263998]
[1763411781313,0.1826,3002.0,3001.2,0.89633936]
[1763411781476,0.4356,3002.8,3001.4,0.89633936]
[1763411781677,0.1862,3003.0,3001.8,0.89633936]
[1763411781881,0.4356,3003.3,3002.3,0.89633936]
[1763411782193,0.1928,3004.4,3002.8,0.89633936]
[1763411782194,0.4332,3004.3,3002.8,0.89633936]
[1763411782393,0.1928,3004.4,3003.0,0.89633936]
[1763411782702,0.1928,3004.8,3003.6,0.89633936]
[1763411782866,0.1928,3004.8,3003.7,0.89633936]
[1763411783087,0.4307,3005.1,3003.7,0.89633936]
[1763411783288,0.4307,3005.1,3003.8,0.4543]
[1763411783600,0.4307,3005.1,3003.8,1.35063936]
[1763411783801,0.1928,3005.3,3003.9,0.2257632]
[1763411783999,0.1928,3005.3,3004.0,0.89633936]
[1763411784213,0.85140618,3005.7,3004.1,0.03328783]
[1763411784416,0.1928,3005.7,3004.4,0.89633936]
[1763411784928,0.1887,3006.3,3004.7,0.89633936]
[1763411785226,0.4862,3006.8,3004.7,0.89633936]
[1763411785425,0.1928,3007.7,3006.2,0.1867]
[1763411785892,0.4862,3007.6,3006.2,0.1867]
[1763411786308,0.4862,3007.6,3005.9,0.4543]
[1763411786510,0.4862,3007.6,3005.3,0.90699264]
[1763411786710,2.15573176,3007.6,3005.2,0.4543]
[1763411786911,0.23485318,3007.5,3005.2,0.4543]
[1763411787113,0.72105318,3007.5,3005.2,0.4543]
[1763411787311,0.4862,3007.5,3005.2,0.4543]
[1763411787624,0.1928,3007.7,3005.3,0.405504]
[1763411787824,0.1928,3007.7,3005.6,0.89633936]
[1763411788024,0.405504,3007.5,3005.5,0.89633936]
[1763411788325,0.1928,3007.7,3005.6,0.405504]
[1763411788524,1.07363128,3010.9,3005.6,2.05492315]
[1763411788525,0.679,3008.1,3005.6,2.05492315]
[1763411788699,0.4862,3008.8,3006.3,0.405504]
[1763411788901,0.679,3008.8,3006.5,0.405504]
[1763411789100,0.1928,3008.8,3006.7,0.405504]
[1763411789414,0.1928,3009.0,3006.8,0.4543]
[1763411789923,0.4862,3008.9,3006.8,0.4543]
[1763411790494,0.4862,3008.9,3006.9,0.405504]
[1763411790693,0.4862,3008.9,3007.0,0.4543]
[1763411790999,0.4862,3008.9,3006.4,0.4543]
[1763411791210,0.405504,3008.8,3006.3,0.1949]
[1763411791512,0.405504,3008.8,3005.7,0.29512625]
[1763411791513,0.104,3006.4,3005.0,0.4543]
[1763411791703,0.5902,3006.4,3005.0,0.4543]
[1763411791900,0.5902,3006.4,3004.8,0.1867]
[1763411791901,0.405504,3006.3,3004.8,0.1867]
[1763411792099,0.405504,3006.3,3004.5,0.4543]
[1763411792300,1.31249664,3006.1,3003.9,0.6800632]
[1763411792528,1.31249664,3006.1,3003.9,0.4543]
[1763411792529,0.405504,3006.1,3003.9,0.4543]
[1763411792716,0.405504,3005.9,3004.0,0.4543]
[1763411792916,0.5902,3006.4,3004.0,0.4543]
[1763411793117,0.405504,3006.3,3004.0,0.4543]
[1763411793695,0.405504,3006.3,3004.1,0.405504]
[1763411793930,0.104,3006.4,3004.3,0.405504]
[1763411794291,0.405504,3006.3,3004.4,0.4543]
[1763411794809,0.405504,3006.1,3003.8,0.87308972]
[1763411794995,0.405504,3006.1,3003.9,0.4543]
[1763411795197,0.405504,3005.9,3003.9,0.4543]
[1763411795608,0.405504,3005.7,3003.9,0.4543]
[1763411795836,0.4979,3006.3,3004.0,0.03328894]
[1763411796130,0.4979,3006.8,3004.1,0.87308972]
[1763411796315,0.4979,3006.8,3004.4,0.405504]
[1763411796499,0.4979,3006.8,3004.3,0.87308972]
[1763411796500,0.405504,3006.7,3004.3,1.27859372]
[1763411796695,0.405504,3006.7,3004.5,0.405504]
[1763411796899,0.1928,3007.2,3004.4,0.4804]
[1763411796900,0.405504,3006.5,3004.4,0.4804]
[1763411797402,0.405504,3006.4,3004.4,0.4804]
[1763411797605,0.1928,3007.2,3004.5,0.4387874]
[1763411797805,0.4979,3007.1,3004.7,0.405504]
[1763411798029,0.4979,3007.7,3004.9,0.405504]
[1763411798257,0.4979,3007.7,3005.0,0.6648]
[1763411798415,0.4979,3007.7,3005.1,0.405504]
[1763411798617,0.4979,3007.7,3005.1,0.4804]
[1763411798838,0.4979,3007.7,3005.2,0.405504]
[1763411799014,0.4979,3007.7,3005.1,0.4804]
[1763411799224,0.405504,3007.6,3005.3,0.90699264]
[1763411799422,0.405504,3007.4,3005.4,0.4804]
[1763411799864,0.405504,3007.2,3005.0,0.1844]
[1763411800158,0.405504,3007.2,3005.1,0.4804]
[1763411800369,2.01594775,3007.0,3004.6,0.4804]
[1763411800530,0.405504,3006.8,3004.6,0.4804]
[1763411800951,0.76201478,3006.9,3004.6,0.4804]
[1763411800952,0.405504,3006.6,3004.6,0.4804]
[1763411801470,0.405504,3006.4,3004.6,0.4804]
[1763411801677,0.6252,3007.1,3004.7,0.405504]
[1763411801842,0.6252,3007.1,3004.6,1.38739264]
[1763411801843,0.4979,3006.8,3004.6,1.38739264]
[1763411802043,0.405504,3006.7,3004.7,0.22604824]
[1763411802239,0.405504,3006.7,3004.7,0.4804]
[1763411802452,0.4979,3006.6,3004.7,0.4804]
[1763411802651,0.405504,3006.5,3004.7,0.4804]
[1763411803177,0.4979,3006.8,3004.8,0.03328008]
[1763411803382,0.405504,3006.7,3004.7,0.4804]
[1763411803745,0.405504,3006.5,3004.7,0.4804]
[1763411804056,0.405504,3007.0,3004.7,0.4804]
[1763411804057,0.4979,3007.0,3004.7,0.4804]
[1763411804372,0.405504,3006.8,3004.7,0.4804]
[1763411804764,0.405504,3006.6,3004.7,0.4804]
[1763411804965,0.405504,3006.6,3004.2,0.4804]
[1763411805275,0.405504,3006.4,3004.2,0.4804]
[1763411805716,0.405504,3006.3,3004.2,0.4804]
[1763411806206,0.405504,3006.1,3004.2,0.4804]
[1763411806579,0.405504,3005.9,3004.2,0.4804]
[1763411806917,0.67234665,3005.8,3004.2,0.4804]
[1763411807084,0.405504,3005.7,3004.2,0.4804]
[1763411807289,0.903404,3005.7,3004.2,0.4804]
[1763411807681,0.17444665,3005.8,3004.2,0.4804]
[1763411807682,0.405504,3005.5,3004.2,0.4804]
[1763411808080,0.17444665,3005.8,3003.7,1.39001915]
[1763411808081,0.405504,3005.3,3003.8,0.87308972]
[1763411808381,0.405504,3005.7,3003.8,0.87308972]
[1763411808382,0.405504,3005.6,3004.0,0.87308972]
[1763411808784,0.4979,3005.5,3004.1,0.22604824]
[1763411809003,0.405504,3005.4,3004.1,0.22604824]
[1763411809310,0.405504,3005.4,3004.1,1.35348972]
[1763411809674,0.405504,3005.4,3004.2,0.4804]
[1763411809895,0.405504,3005.4,3004.2,1.35348972]
[1763411810109,0.405504,3005.4,3004.3,1.35348972]
[1763411810284,0.405504,3005.4,3004.4,0.87308972]
[1763411810483,0.405504,3005.4,3004.5,0.22604824]
[1763411810820,0.405504,3005.2,3004.5,0.22604824]
[1763411811008,0.405504,3005.0,3004.2,0.87308972]
[1763411811412,0.405504,3005.0,3004.0,1.19511915]
[1763411811413,0.405504,3004.8,3004.0,0.87308972]
[1763411812007,0.1811,3006.4,3004.6,0.87308972]
[1763411812210,0.67234665,3005.8,3004.9,0.87308972]
[1763411812372,0.17444665,3005.8,3005.2,0.87308972]
[1763411812573,0.1811,3006.0,3005.3,0.87308972]
[1763411813441,0.1811,3006.0,3005.4,0.87308972]
[1763411813643,0.1811,3006.0,3005.5,0.87308972]
[1763411813943,0.4979,3005.9,3005.4,0.87308972]
[1763411814445,0.405504,3005.8,3005.3,0.87308972]
[1763411814845,0.405504,3005.9,3005.4,0.87308972]
[1763411815044,0.903404,3005.9,3005.4,0.87308972]
[1763411815842,0.4979,3005.8,3005.3,0.87308972]
[1763411816028,0.1811,3006.4,3005.4,0.90636316]
[1763411816228,0.405504,3006.3,3005.4,0.90636316]
[1763411816544,0.1811,3006.4,3005.7,0.87308972]
[1763411816837,0.679,3006.4,3005.6,0.87308972]
[1763411817206,0.4979,3006.3,3005.6,0.87308972]
[1763411817440,0.405504,3006.2,3005.5,0.87308972]
[1763411817848,0.405504,3006.0,3005.5,0.87308972]
[1763411818221,0.679,3005.9,3005.5,0.87308972]
[1763411819011,0.1831,3006.4,3005.6,0.03327122]
[1763411819259,0.903404,3006.3,3005.8,0.87308972]
[1763411819427,0.903404,3006.3,3005.7,0.87308972]
[1763411819961,0.405504,3006.1,3005.7,0.87308972]
[1763411820268,0.586604,3005.8,3005.7,0.89390428]
[1763411820551,0.1811,3005.8,3005.5,0.89390428]
[1763411820768,0.405504,3005.6,3005.3,0.89390428]
[1763411820969,0.405504,3005.6,3005.4,0.89390428]
[1763411821153,0.903404,3005.5,3005.4,0.89390428]
[1763411821365,0.903404,3005.5,3005.2,0.89390428]
[1763411821564,0.405504,3005.3,3005.0,0.89390428]
[1763411822078,0.1811,3005.8,3005.2,1.19511915]
[1763411822282,0.405504,3005.7,3005.5,0.89482899]
[1763411822460,0.4979,3006.3,3005.6,0.89482899]
[1763411822631,0.4979,3006.3,3005.9,0.89447516]
[1763411823373,0.405504,3006.2,3006.0,0.89447516]
[1763411823583,0.4979,3006.3,3006.0,0.89447516]
[1763411823731,0.4979,3006.2,3006.0,0.89447516]
[1763411824136,0.405504,3006.1,3005.9,0.89447516]
[1763411824332,0.405504,3006.1,3006.0,0.89447516]
[1763411824539,0.903404,3006.1,3006.0,0.89447516]
[1763411824744,0.4979,3006.1,3005.9,0.89447516]
[1763411824969,0.588604,3006.4,3006.0,1.22637211]
[1763411824970,0.002,3006.4,3006.0,1.22637211]
[1763411825174,0.002,3006.4,3006.2,1.79267873]
[1763411825677,0.903404,3006.3,3006.2,1.19057388]
[1763411825832,0.405504,3006.3,3006.2,0.89276857]
[1763411826033,0.405504,3006.3,3006.0,2.09756652]
[1763411826034,0.405504,3006.2,3006.0,1.19057388]
[1763411826344,0.002,3006.4,3006.1,1.19057388]
[1763411826549,0.002,3006.4,3006.2,1.19057388]
[1763411826767,0.002,3006.4,3006.3,1.82594221]
[1763411826972,0.002,3006.4,3006.3,1.79267873]
[1763411827140,0.002,3006.4,3006.2,1.79267873]
[1763411827336,0.002,3006.4,3006.3,1.18977363]
[1763411827780,0.002,3006.4,3006.2,0.89313396]
[1763411827948,0.002,3006.4,3005.8,0.89313396]
[1763411828149,0.002,3006.4,3005.7,0.89313396]
[1763411828150,0.405504,3005.8,3005.7,0.89313396]
[1763411828575,0.887004,3005.8,3005.5,0.89313396]
[1763411828966,0.1963,3005.9,3005.5,0.89313396]
[1763411829169,0.405504,3005.8,3005.6,0.89313396]
[1763411829362,0.405504,3005.8,3005.7,0.89313396]
[1763411829599,0.405504,3005.8,3005.6,0.89313396]
[1763411829895,0.405504,3005.8,3005.6,1.18977363]
[1763411830262,0.405504,3005.6,3005.5,1.18977363]
[1763411830466,0.405504,3005.6,3005.1,0.89603835]
[1763411830708,0.405504,3005.8,3005.4,0.89603835]
[1763411831010,0.405504,3005.8,3005.6,0.89563496]
[1763411831163,0.887004,3005.8,3005.6,0.89563496]
[1763411831364,0.1963,3005.9,3005.7,0.89563496]
[1763411831564,0.4835,3006.4,3005.7,2.69967137]
[1763411831788,0.4835,3006.4,3006.0,0.89545949]
[1763411832019,0.405504,3006.3,3006.0,0.89545949]
[1763411832272,0.002,3006.4,3006.1,0.89545949]
[1763411832774,0.002,3006.4,3005.7,2.69967137]
[1763411832775,0.002,3006.4,3006.2,0.89545949]
[1763411832976,0.002,3006.4,3006.3,0.89545949]
[1763411833177,0.002,3006.4,3006.2,1.19399754]
[1763411833379,0.002,3006.4,3006.3,0.89530259]
[1763411833380,0.889004,3006.4,3006.3,0.89530259]
[1763411833878,0.405504,3006.3,3006.2,0.89530259]
[1763411834077,0.405504,3006.3,3006.0,1.19399754]
[1763411834407,0.405504,3006.3,3006.2,0.8953605]
[1763411834571,0.405504,3006.2,3006.1,0.8953605]
[1763411835288,0.887004,3006.2,3006.1,0.8953605]
[1763411835502,0.407504,3006.4,3006.0,0.8953605]
[1763411835814,0.002,3006.4,3006.2,0.8953605]
[1763411836024,0.002,3006.4,3006.3,0.8953605]
[1763411836224,0.002,3006.4,3006.2,1.82594331]
[1763411836395,0.002,3006.4,3006.3,1.19194607]
[1763411836996,0.407504,3006.4,3006.3,1.19194607]
[1763411837200,0.002,3006.4,3006.2,1.19194607]
[1763411837431,0.002,3006.4,3006.2,2.09114121]
[1763411837726,0.002,3006.4,3006.3,0.4578]
[1763411837925,0.1811,3008.2,3006.3,0.49106348]
[1763411838087,0.4547,3008.1,3007.8,0.89304722]
[1763411838423,8.07295516,3008.7,3007.6,0.89304722]
[1763411838608,1.26199552,3008.6,3007.6,0.89304722]
[1763411838807,9.293291,3008.2,3007.7,0.89304722]
[1763411839008,9.293291,3008.2,3007.6,0.89304722]
[1763411839322,9.293291,3008.2,3007.5,0.89304722]
[1763411839323,0.405504,3008.1,3007.5,0.89304722]
[1763411839551,9.293291,3008.2,3007.5,0.89304722]
[1763411839821,0.64984978,3008.5,3007.3,0.89304722]
[1763411839822,0.0733,3007.6,3007.3,0.89304722]
[1763411840037,0.405504,3007.5,3007.2,0.89304722]
[1763411840219,0.405504,3007.5,3007.1,0.89304722]
[1763411840535,0.0733,3007.6,3006.6,0.89304722]
[1763411840536,0.405504,3007.3,3006.6,0.89304722]
[1763411840689,0.405504,3006.8,3006.5,0.89304722]
[1763411841024,0.405504,3006.8,3006.2,0.89304722]
[1763411841193,0.405504,3006.8,3006.3,0.89304722]
[1763411841386,0.860204,3006.8,3006.2,0.89304722]
[1763411841819,0.405504,3006.8,3006.2,0.89304722]
[1763411842022,0.1996,3006.9,3006.3,0.89304722]
[1763411842233,0.405504,3006.8,3006.3,0.89304722]
[1763411842398,0.405504,3006.8,3006.2,0.89304722]
[1763411843204,0.1996,3006.9,3005.9,0.89304722]
[1763411843205,0.405504,3006.6,3005.9,0.89304722]
[1763411843425,0.405504,3006.8,3006.4,0.89304722]
[1763411844431,0.860204,3006.8,3006.2,0.89304722]
[1763411844628,0.860204,3006.8,3006.3,0.89304722]
[1763411845152,0.405504,3006.6,3006.3,0.89304722]
[1763411845353,0.405504,3006.6,3006.0,0.89304722]
[1763411845655,0.405504,3006.4,3005.9,0.89304722]
[1763411845840,0.405504,3006.2,3005.9,0.89304722]
[1763411846246,0.405504,3006.2,3005.8,0.89404722]
[1763411846454,0.405504,3006.7,3006.0,0.89304722]
[1763411846746,0.405504,3006.5,3006.0,0.89304722]
[1763411846948,0.405504,3006.8,3006.0,0.89304722]
[1763411847117,1.06326988,3006.8,3005.9,0.89304722]
[1763411847320,0.405504,3006.6,3006.0,0.89304722]
[1763411847549,0.405504,3006.6,3005.8,1.19172963]
[1763411847550,0.405504,3006.8,3006.1,0.89304722]
[1763411847852,0.405504,3006.8,3006.2,0.89304722]
[1763411848055,0.528,3007.6,3006.5,0.89304722]
[1763411848356,0.4547,3007.5,3006.7,0.89304722]
[1763411848557,0.0733,3007.6,3006.8,0.89304722]
[1763411848757,0.65728293,3008.4,3007.0,0.89304722]
[1763411848929,0.4547,3008.5,3007.5,0.89304722]
[1763411849124,0.4547,3008.5,3007.4,0.89304722]
[1763411849321,0.0733,3007.5,3007.3,0.89304722]
[1763411849591,0.0733,3007.5,3006.8,0.89304722]
[1763411849592,0.405504,3007.4,3006.8,0.89304722]
[1763411849776,0.405504,3006.8,3006.6,0.89304722]
[1763411850060,0.405504,3006.8,3006.1,0.89304722]
[1763411850258,0.405504,3006.8,3006.2,0.89304722]
[1763411851018,0.860204,3006.8,3006.2,0.89304722]
[1763411851254,0.860204,3006.8,3006.0,0.89304722]
[1763411851464,0.405504,3006.6,3006.0,0.89304722]
[1763411852161,0.4547,3006.6,3005.9,0.89304722]
[1763411853021,0.405504,3006.5,3005.8,0.89404722]
[1763411853225,0.405504,3006.5,3005.8,0.001]
[1763411853426,0.505304,3005.9,3005.8,0.001]
[1763411853858,0.405504,3005.9,3005.8,0.001]
[1763411854031,1.059804,3005.9,3005.8,0.001]
[1763411854230,0.405504,3005.9,3005.8,0.001]
[1763411854672,0.605104,3005.9,3005.8,0.001]
[1763411854879,1.059804,3005.9,3005.8,0.001]
[1763411855057,1.97301638,3005.9,3005.8,0.001]
[1763411857985,1.97301638,3005.9,3005.1,0.001]
[1763411857986,0.405504,3005.8,3005.1,0.001]
[1763411858149,0.405504,3005.2,3005.1,0.001]
[1763411858671,1.80039664,3005.2,3005.1,0.001]
[1763411858871,2.69252506,3005.2,3004.0,0.001]
[1763411859058,0.405504,3005.0,3004.0,0.001]
[1763411859459,0.405504,3004.8,3004.0,0.001]
[1763411859850,0.6804,3004.9,3004.0,0.001]
[1763411859851,0.405504,3004.6,3004.0,0.001]
[1763411860398,0.405504,3004.4,3004.0,0.001]
[1763411860746,0.90699264,3004.6,3004.0,0.001]
[1763411860747,0.405504,3004.2,3004.0,0.001]
[1763411861153,0.405504,3004.5,3004.0,0.001]
[1763411861497,1.31871638,3004.5,3004.0,0.001]
[1763411862580,1.80661638,3004.5,3004.0,0.001]
[1763411862884,0.405504,3004.2,3004.0,0.001]
[1763411864972,9.31689317,3004.3,3003.0,1.07724722]
[1763411864973,0.893404,3004.1,3003.0,0.6535]
[1763411865299,9.31689317,3003.9,3003.1,0.4693]
[1763411866518,0.405504,3003.8,3003.1,0.4693]
[1763411866868,0.405504,3003.4,3003.0,0.1842]
[1763411867168,0.405504,3003.4,3001.9,0.6691]
[1763411867169,0.405504,3003.0,3001.9,0.6691]
[1763411867369,1.37774372,3003.0,3002.1,0.4693]
[1763411867608,0.38653478,3003.7,3002.1,0.4693]
[1763411867609,0.405504,3003.5,3002.1,0.4693]
[1763411867813,0.405504,3003.5,3002.1,1.36234722]
[1763411868108,0.405504,3003.5,3002.1,0.4693]
[1763411868311,0.405504,3003.5,3002.2,0.4693]
[1763411868678,9.31689317,3004.0,3003.4,0.1998]